[Event "Chessable Masters - Torneo preliminare"]
[White "Keymer, Vincent"]
[Black "Tari, Aryan"]
[WhiteFideId "12940690"]
[BlackFideId "1510045"]
[WhiteElo "2630"]
[BlackElo "2539"]
[Result "1-0"]
[Round "5"]
[TimeControl "600+2"]
[Date "2023.03.13"]
[WhiteClock "0:00:18"]
[BlackClock "0:00:05"]

1. Nf3 {[%clk 0:09:58]}  Nf6 {[%clk 0:09:53]} 2. c4 {[%clk 0:09:59]}  c5 {[%clk 0:09:52]} 3. Nc3 {[%clk 0:09:51]}  e6 {[%clk 0:09:51]} 4. g3 {[%clk 0:09:46]}  d5 {[%clk 0:09:51]} 5. cxd5 {[%clk 0:09:47]}  exd5 {[%clk 0:09:53]} 6. d4 {[%clk 0:09:49]}  Nc6 {[%clk 0:09:54]} 7. a3 {[%clk 0:09:50]}  cxd4 {[%clk 0:08:47]} 8. Nxd4 {[%clk 0:09:52]}  Bc5 {[%clk 0:08:47]} 9. Be3 {[%clk 0:09:53]}  Bb6 {[%clk 0:08:45]} 10. Na4 {[%clk 0:09:18]}  O-O {[%clk 0:08:43]} 11. Nxb6 {[%clk 0:09:04]}  axb6 {[%clk 0:08:41]} 12. Bg2 {[%clk 0:08:59]}  Re8 {[%clk 0:08:42]} 13. O-O {[%clk 0:08:52]}  Ne4 {[%clk 0:06:43]} 14. Rc1 {[%clk 0:08:30]}  Na5 {[%clk 0:04:55]} 15. Nb5 {[%clk 0:08:08]}  Nc6 {[%clk 0:04:33]} 16. Bf4 {[%clk 0:07:36]}  Re7 {[%clk 0:04:17]} 17. b4 {[%clk 0:06:03]}  Bf5 {[%clk 0:03:48]} 18. Nc7 {[%clk 0:05:54]}  Rxc7 {[%clk 0:03:25]} 19. Bxc7 {[%clk 0:05:54]}  Qxc7 {[%clk 0:03:27]} 20. Qxd5 {[%clk 0:05:18]}  Qe5 {[%clk 0:03:18]} 21. Qxe5 {[%clk 0:04:18]}  Nxe5 {[%clk 0:03:20]} 22. g4 {[%clk 0:04:17]}  Nxg4 {[%clk 0:02:37]} 23. f3 {[%clk 0:04:16]}  Ne5 {[%clk 0:02:30]} 24. fxe4 {[%clk 0:04:14]}  Bd7 {[%clk 0:02:27]} 25. Rc3 {[%clk 0:04:10]}  h5 {[%clk 0:02:22]} 26. Rd1 {[%clk 0:03:58]}  f6 {[%clk 0:02:07]} 27. Bh3 {[%clk 0:03:45]}  Bc6 {[%clk 0:01:55]} 28. Be6+ {[%clk 0:03:45]}  Kh7 {[%clk 0:01:56]} 29. Bd5 {[%clk 0:03:46]}  b5 {[%clk 0:01:57]} 30. Kf2 {[%clk 0:03:34]}  Re8 {[%clk 0:01:42]} 31. h3 {[%clk 0:03:32]}  Kh6 {[%clk 0:01:38]} 32. Ke3 {[%clk 0:02:54]}  Bd7 {[%clk 0:01:27]} 33. Kd4 {[%clk 0:02:50]}  b6 {[%clk 0:01:28]} 34. Rg1 {[%clk 0:02:26]}  g5 {[%clk 0:01:25]} 35. Rc7 {[%clk 0:01:35]}  Bxh3 {[%clk 0:01:16]} 36. Rb7 {[%clk 0:01:36]}  Kg6 {[%clk 0:01:00]} 37. Rxb6 {[%clk 0:01:32]}  Bg4 {[%clk 0:00:50]} 38. Rxb5 {[%clk 0:01:10]}  Bxe2 {[%clk 0:00:47]} 39. Rb7 {[%clk 0:01:11]}  h4 {[%clk 0:00:20]} 40. Ke3 {[%clk 0:01:10]}  Bf3 {[%clk 0:00:14]} 41. Rc1 {[%clk 0:00:21]}  h3 {[%clk 0:00:07]} 42. Rcc7 {[%clk 0:00:22]}  Kh5 {[%clk 0:00:06]} 43. Rh7+ {[%clk 0:00:18]}  Kg4 {[%clk 0:00:06]} 44. Kf2 {[%clk 0:00:16]}  Rc8 {[%clk 0:00:05]} 45. Be6+ {[%clk 0:00:17]}  Kf4 {[%clk 0:00:06]} 46. Bxc8 {[%clk 0:00:17]}  Bxe4 {[%clk 0:00:07]} 47. Bxh3 {[%clk 0:00:17]}  g4 {[%clk 0:00:05]} 48. Bg2 {[%clk 0:00:18]} 1-0


[Site "Internet"]

[Event "Chessable Masters - Torneo preliminare"]
[White "Makarian, Rudik"]
[Black "Dreev, Aleksey"]
[WhiteFideId "44105681"]
[BlackFideId "4100107"]
[WhiteElo "2462"]
[BlackElo "2557"]
[Result "0-1"]
[Round "5"]
[TimeControl "600+2"]
[Date "2023.03.13"]
[WhiteClock "0:00:10"]
[BlackClock "0:01:26"]

1. d4 {[%clk 0:10:01]}  d5 {[%clk 0:08:36]} 2. c4 {[%clk 0:08:37]}  c6 {[%clk 0:08:36]} 3. Nf3 {[%clk 0:08:37]}  Nf6 {[%clk 0:08:36]} 4. Nc3 {[%clk 0:08:39]}  e6 {[%clk 0:08:36]} 5. g3 {[%clk 0:08:41]}  dxc4 {[%clk 0:08:34]} 6. Bg2 {[%clk 0:08:43]}  Nbd7 {[%clk 0:08:34]} 7. O-O {[%clk 0:08:44]}  Bb4 {[%clk 0:08:35]} 8. Bg5 {[%clk 0:06:03]}  O-O {[%clk 0:08:10]} 9. Nd2 {[%clk 0:05:57]}  Nb6 {[%clk 0:07:45]} 10. e3 {[%clk 0:05:49]}  h6 {[%clk 0:07:22]} 11. Bxf6 {[%clk 0:05:34]}  Qxf6 {[%clk 0:07:23]} 12. Qe2 {[%clk 0:04:16]}  e5 {[%clk 0:07:20]} 13. Nxc4 {[%clk 0:03:43]}  exd4 {[%clk 0:07:03]} 14. Ne4 {[%clk 0:03:43]}  Qe7 {[%clk 0:07:00]} 15. exd4 {[%clk 0:03:25]}  Nxc4 {[%clk 0:06:42]} 16. Qxc4 {[%clk 0:03:27]}  Be6 {[%clk 0:06:42]} 17. Qd3 {[%clk 0:03:20]}  Rad8 {[%clk 0:06:36]} 18. Rfd1 {[%clk 0:03:01]}  Bg4 {[%clk 0:05:29]} 19. Rdc1 {[%clk 0:02:28]}  Bf5 {[%clk 0:04:53]} 20. a3 {[%clk 0:01:49]}  Ba5 {[%clk 0:04:46]} 21. Qe3 {[%clk 0:01:50]}  Rfe8 {[%clk 0:04:34]} 22. Nc5 {[%clk 0:01:49]}  Qxe3 {[%clk 0:04:32]} 23. fxe3 {[%clk 0:01:51]}  Bd2 {[%clk 0:04:33]} 24. Rf1 {[%clk 0:01:43]}  Bxe3+ {[%clk 0:04:29]} 25. Kh1 {[%clk 0:01:44]}  Bc8 {[%clk 0:04:30]} 26. b4 {[%clk 0:01:31]}  Bxd4 {[%clk 0:04:29]} 27. Rab1 {[%clk 0:01:30]}  Bxc5 {[%clk 0:04:24]} 28. bxc5 {[%clk 0:01:31]}  Re5 {[%clk 0:04:25]} 29. Rbe1 {[%clk 0:01:17]}  Rxc5 {[%clk 0:03:56]} 30. Re7 {[%clk 0:01:16]}  Rf8 {[%clk 0:03:20]} 31. h4 {[%clk 0:01:16]}  Rc3 {[%clk 0:03:12]} 32. Kh2 {[%clk 0:01:16]}  Rxa3 {[%clk 0:03:09]} 33. Bf3 {[%clk 0:01:12]}  a5 {[%clk 0:02:45]} 34. g4 {[%clk 0:01:09]}  g6 {[%clk 0:02:16]} 35. h5 {[%clk 0:00:59]}  g5 {[%clk 0:02:07]} 36. Be2 {[%clk 0:00:57]}  Be6 {[%clk 0:01:55]} 37. Rf2 {[%clk 0:00:39]}  Ra2 {[%clk 0:01:49]} 38. Kg3 {[%clk 0:00:38]}  b5 {[%clk 0:01:44]} 39. Kf3 {[%clk 0:00:24]}  b4 {[%clk 0:01:36]} 40. Ke4 {[%clk 0:00:18]}  Bxg4 {[%clk 0:01:26]} 41. Rexf7 {[%clk 0:00:10]} 0-1


[Site "Internet"]

[Event "Chessable Masters - Torneo preliminare"]
[White "Vokhidov, Shamsiddin"]
[Black "Kevlishvili, Robby"]
[WhiteFideId "14204223"]
[BlackFideId "1040634"]
[WhiteElo "2514"]
[BlackElo "2577"]
[Result "1/2-1/2"]
[Round "5"]
[TimeControl "600+2"]
[Date "2023.03.13"]
[WhiteClock "0:00:33"]
[BlackClock "0:00:56"]

1. e4 {[%clk 0:10:01]}  c5 {[%clk 0:09:52]} 2. Nf3 {[%clk 0:10:02]}  d6 {[%clk 0:09:50]} 3. Bb5+ {[%clk 0:10:02]}  Nd7 {[%clk 0:09:50]} 4. a4 {[%clk 0:10:03]}  a6 {[%clk 0:09:44]} 5. Be2 {[%clk 0:10:03]}  Ngf6 {[%clk 0:09:45]} 6. Nc3 {[%clk 0:10:04]}  g6 {[%clk 0:09:37]} 7. d4 {[%clk 0:10:05]}  cxd4 {[%clk 0:09:37]} 8. Nxd4 {[%clk 0:10:07]}  Bg7 {[%clk 0:09:31]} 9. O-O {[%clk 0:10:07]}  O-O {[%clk 0:09:30]} 10. Be3 {[%clk 0:10:07]}  Nc5 {[%clk 0:09:22]} 11. f3 {[%clk 0:10:07]}  Bd7 {[%clk 0:08:49]} 12. a5 {[%clk 0:10:07]}  Rc8 {[%clk 0:08:25]} 13. Qd2 {[%clk 0:10:06]}  e5 {[%clk 0:08:01]} 14. Nb3 {[%clk 0:10:04]}  Nxb3 {[%clk 0:08:02]} 15. cxb3 {[%clk 0:10:06]}  Be6 {[%clk 0:08:03]} 16. b4 {[%clk 0:08:30]}  d5 {[%clk 0:08:04]} 17. Bb6 {[%clk 0:07:02]}  Qd7 {[%clk 0:08:03]} 18. exd5 {[%clk 0:06:59]}  Nxd5 {[%clk 0:08:03]} 19. Nxd5 {[%clk 0:06:58]}  Qxd5 {[%clk 0:08:05]} 20. Qxd5 {[%clk 0:06:55]}  Bxd5 {[%clk 0:08:07]} 21. b5 {[%clk 0:06:50]}  axb5 {[%clk 0:08:08]} 22. Bxb5 {[%clk 0:06:50]}  e4 {[%clk 0:07:59]} 23. Rad1 {[%clk 0:06:34]}  Bc4 {[%clk 0:06:27]} 24. Bxc4 {[%clk 0:06:32]}  Rxc4 {[%clk 0:06:29]} 25. Rd7 {[%clk 0:06:27]}  Bxb2 {[%clk 0:05:38]} 26. fxe4 {[%clk 0:06:27]}  Rxe4 {[%clk 0:04:51]} 27. Rxb7 {[%clk 0:06:27]}  Ra4 {[%clk 0:04:52]} 28. Rf3 {[%clk 0:04:00]}  Be5 {[%clk 0:04:44]} 29. g3 {[%clk 0:03:53]}  Ra2 {[%clk 0:04:38]} 30. Rf2 {[%clk 0:03:51]}  Ra1+ {[%clk 0:04:25]} 31. Kg2 {[%clk 0:03:52]}  f6 {[%clk 0:03:52]} 32. Rd2 {[%clk 0:03:48]}  Rf7 {[%clk 0:03:44]} 33. Rdd7 {[%clk 0:03:37]}  Rxd7 {[%clk 0:03:44]} 34. Rxd7 {[%clk 0:03:38]}  Ra2+ {[%clk 0:03:31]} 35. Kf3 {[%clk 0:03:39]}  Bc3 {[%clk 0:03:21]} 36. Ra7 {[%clk 0:03:11]}  Bxa5 {[%clk 0:02:40]} 37. Bxa5 {[%clk 0:03:05]}  Rxh2 {[%clk 0:02:41]} 38. Bd8 {[%clk 0:02:56]}  Rh5 {[%clk 0:02:04]} 39. g4 {[%clk 0:02:53]}  Rh3+ {[%clk 0:01:55]} 40. Kg2 {[%clk 0:02:53]}  Rh4 {[%clk 0:01:53]} 41. Kg3 {[%clk 0:02:53]}  g5 {[%clk 0:01:54]} 42. Bxf6 {[%clk 0:02:39]}  h5 {[%clk 0:01:55]} 43. gxh5 {[%clk 0:02:38]}  Rxh5 {[%clk 0:01:54]} 44. Kg4 {[%clk 0:02:39]}  Rh1 {[%clk 0:01:53]} 45. Kf5 {[%clk 0:02:39]}  Rh7 {[%clk 0:01:31]} 46. Ra8+ {[%clk 0:01:54]}  Kf7 {[%clk 0:01:32]} 47. Bxg5 {[%clk 0:01:56]}  Rh1 {[%clk 0:01:23]} 48. Ra7+ {[%clk 0:01:54]}  Ke8 {[%clk 0:01:18]} 49. Bf6 {[%clk 0:01:43]}  Rb1 {[%clk 0:01:07]} 50. Kg6 {[%clk 0:01:16]}  Rg1+ {[%clk 0:01:02]} 51. Bg5 {[%clk 0:01:17]}  Re1 {[%clk 0:01:02]} 52. Bf4 {[%clk 0:01:09]}  Re6+ {[%clk 0:01:01]} 53. Kf5 {[%clk 0:01:10]}  Re7 {[%clk 0:01:01]} 54. Ra8+ {[%clk 0:01:03]}  Kd7 {[%clk 0:01:01]} 55. Be5 {[%clk 0:01:05]}  Kc6 {[%clk 0:01:01]} 56. Ke4 {[%clk 0:01:03]}  Rh7 {[%clk 0:00:59]} 57. Ra6+ {[%clk 0:01:02]}  Kb5 {[%clk 0:00:59]} 58. Rf6 {[%clk 0:01:02]}  Rh4+ {[%clk 0:01:00]} 59. Kd5 {[%clk 0:01:02]}  Rh5 {[%clk 0:01:01]} 60. Rf1 {[%clk 0:01:02]}  Ka5 {[%clk 0:01:00]} 61. Rb1 {[%clk 0:01:00]}  Rg5 {[%clk 0:01:00]} 62. Kd4 {[%clk 0:01:00]}  Ka6 {[%clk 0:01:00]} 63. Bd6 {[%clk 0:01:01]}  Rb5 {[%clk 0:01:01]} 64. Rf1 {[%clk 0:01:02]}  Kb7 {[%clk 0:01:02]} 65. Bc5 {[%clk 0:01:02]}  Rb2 {[%clk 0:00:56]} 66. Kd5 {[%clk 0:01:00]}  Rd2+ {[%clk 0:00:55]} 67. Bd4 {[%clk 0:01:02]}  Kc7 {[%clk 0:00:57]} 68. Rf7+ {[%clk 0:01:00]}  Kd8 {[%clk 0:00:57]} 69. Rg7 {[%clk 0:01:00]}  Rd1 {[%clk 0:00:58]} 70. Ke5 {[%clk 0:01:00]}  Kc8 {[%clk 0:00:59]} 71. Rf7 {[%clk 0:00:54]}  Rd2 {[%clk 0:00:59]} 72. Rh7 {[%clk 0:00:55]}  Rd1 {[%clk 0:01:00]} 73. Kd5 {[%clk 0:00:57]}  Kd8 {[%clk 0:01:00]} 74. Kc5 {[%clk 0:00:57]}  Ke8 {[%clk 0:01:01]} 75. Be5 {[%clk 0:00:58]}  Rd7 {[%clk 0:01:01]} 76. Rh6 {[%clk 0:00:59]}  Kf7 {[%clk 0:00:59]} 77. Bd6 {[%clk 0:01:00]}  Kg7 {[%clk 0:00:59]} 78. Rh2 {[%clk 0:00:59]}  Ra7 {[%clk 0:00:58]} 79. Kd5 {[%clk 0:01:00]}  Kf6 {[%clk 0:00:55]} 80. Be5+ {[%clk 0:00:42]}  Kf5 {[%clk 0:00:55]} 81. Rf2+ {[%clk 0:00:41]}  Kg5 {[%clk 0:00:56]} 82. Bd4 {[%clk 0:00:37]}  Ra4 {[%clk 0:00:54]} 83. Ke4 {[%clk 0:00:34]}  Kg4 {[%clk 0:00:53]} 84. Rg2+ {[%clk 0:00:33]}  Kh4 {[%clk 0:00:51]} 85. Rg1 {[%clk 0:00:34]}  Rb4 {[%clk 0:00:51]} 86. Ke5 {[%clk 0:00:33]}  Kh3 {[%clk 0:00:52]} 87. Rg7 {[%clk 0:00:34]}  Ra4 {[%clk 0:00:51]} 88. Ke4 {[%clk 0:00:30]}  Rb4 {[%clk 0:00:52]} 89. Kf3 {[%clk 0:00:30]}  Rxd4 {[%clk 0:00:53]} 90. Rh7+ {[%clk 0:00:31]}  Rh4 {[%clk 0:00:54]} 91. Rxh4+ {[%clk 0:00:33]}  Kxh4 {[%clk 0:00:56]} 1/2-1/2


[Site "Internet"]

[Event "Chessable Masters - Torneo preliminare"]
[White "Tabatabaei, M. Amin"]
[Black "Matamoros Franco, Carlos S."]
[WhiteFideId "12521213"]
[BlackFideId "3600017"]
[WhiteElo "2558"]
[BlackElo "2407"]
[Result "1-0"]
[Round "5"]
[TimeControl "600+2"]
[Date "2023.03.13"]
[WhiteClock "0:05:04"]
[BlackClock "0:05:19"]

1. d4 {[%clk 0:10:01]}  Nf6 {[%clk 0:10:00]} 2. c4 {[%clk 0:10:03]}  c5 {[%clk 0:10:02]} 3. d5 {[%clk 0:10:04]}  g6 {[%clk 0:10:03]} 4. Nc3 {[%clk 0:10:04]}  Bg7 {[%clk 0:10:05]} 5. e4 {[%clk 0:10:05]}  d6 {[%clk 0:10:06]} 6. Nf3 {[%clk 0:10:06]}  O-O {[%clk 0:10:07]} 7. Be2 {[%clk 0:09:58]}  e6 {[%clk 0:10:02]} 8. O-O {[%clk 0:09:57]}  Re8 {[%clk 0:10:04]} 9. h3 {[%clk 0:09:50]}  Na6 {[%clk 0:09:12]} 10. Bd3 {[%clk 0:09:28]}  Nc7 {[%clk 0:09:06]} 11. Re1 {[%clk 0:09:06]}  exd5 {[%clk 0:08:37]} 12. exd5 {[%clk 0:09:06]}  Rxe1+ {[%clk 0:08:11]} 13. Qxe1 {[%clk 0:09:08]}  b5 {[%clk 0:08:06]} 14. cxb5 {[%clk 0:08:40]}  Bb7 {[%clk 0:07:56]} 15. Bg5 {[%clk 0:08:39]}  h6 {[%clk 0:07:41]} 16. Bxf6 {[%clk 0:08:33]}  Bxf6 {[%clk 0:07:21]} 17. Bc4 {[%clk 0:08:28]}  Bxc3 {[%clk 0:07:01]} 18. bxc3 {[%clk 0:07:11]}  Nxd5 {[%clk 0:06:41]} 19. Qe4 {[%clk 0:06:00]}  Qe8 {[%clk 0:06:34]} 20. Qd3 {[%clk 0:05:30]}  Nf4 {[%clk 0:06:06]} 21. Qxd6 {[%clk 0:05:31]}  Qe4 {[%clk 0:05:54]} 22. Bxf7+ {[%clk 0:05:04]}  Kxf7 {[%clk 0:05:19]} 23. Re1 {[%clk 0:05:04]} 1-0


[Site "Internet"]

[Event "Chessable Masters - Torneo preliminare"]
[White "Aditya, Mittal"]
[Black "Mareco, Sandro"]
[WhiteFideId "35042025"]
[BlackFideId "112275"]
[WhiteElo "2386"]
[BlackElo "2541"]
[Result "1/2-1/2"]
[Round "5"]
[TimeControl "600+2"]
[Date "2023.03.13"]
[WhiteClock "0:01:47"]
[BlackClock "0:03:29"]

1. d4 {[%clk 0:10:01]}  Nf6 {[%clk 0:09:59]} 2. c4 {[%clk 0:10:03]}  e6 {[%clk 0:10:00]} 3. Nf3 {[%clk 0:10:04]}  d5 {[%clk 0:10:01]} 4. Nc3 {[%clk 0:10:04]}  Bb4 {[%clk 0:10:01]} 5. Qa4+ {[%clk 0:09:53]}  Nc6 {[%clk 0:10:01]} 6. e3 {[%clk 0:09:55]}  O-O {[%clk 0:10:00]} 7. Qc2 {[%clk 0:09:56]}  Re8 {[%clk 0:10:01]} 8. Bd2 {[%clk 0:09:56]}  Bf8 {[%clk 0:10:01]} 9. Be2 {[%clk 0:09:57]}  b6 {[%clk 0:10:02]} 10. cxd5 {[%clk 0:09:45]}  exd5 {[%clk 0:10:02]} 11. a3 {[%clk 0:09:38]}  Ne7 {[%clk 0:09:54]} 12. b4 {[%clk 0:09:30]}  Bf5 {[%clk 0:09:53]} 13. Bd3 {[%clk 0:09:32]}  Bxd3 {[%clk 0:09:47]} 14. Qxd3 {[%clk 0:09:34]}  Ng6 {[%clk 0:09:46]} 15. O-O {[%clk 0:09:33]}  c6 {[%clk 0:09:43]} 16. Rfc1 {[%clk 0:09:25]}  Qd7 {[%clk 0:09:43]} 17. Ne2 {[%clk 0:09:00]}  Ne4 {[%clk 0:09:40]} 18. Ng3 {[%clk 0:08:47]}  Bd6 {[%clk 0:08:38]} 19. Rc2 {[%clk 0:08:38]}  Re6 {[%clk 0:08:18]} 20. Rac1 {[%clk 0:08:35]}  Ne7 {[%clk 0:08:17]} 21. Be1 {[%clk 0:07:36]}  b5 {[%clk 0:06:47]} 22. Nd2 {[%clk 0:07:08]}  Bxg3 {[%clk 0:06:46]} 23. hxg3 {[%clk 0:07:05]}  Nf5 {[%clk 0:06:40]} 24. Nb3 {[%clk 0:06:50]}  Rg6 {[%clk 0:05:51]} 25. Na5 {[%clk 0:06:12]}  Ne7 {[%clk 0:05:50]} 26. f3 {[%clk 0:05:50]}  Ng5 {[%clk 0:05:30]} 27. g4 {[%clk 0:05:34]}  h5 {[%clk 0:05:11]} 28. f4 {[%clk 0:04:14]}  Ne4 {[%clk 0:05:10]} 29. gxh5 {[%clk 0:04:14]}  Rh6 {[%clk 0:05:11]} 30. Qe2 {[%clk 0:04:00]}  Re8 {[%clk 0:05:09]} 31. g4 {[%clk 0:03:58]}  f5 {[%clk 0:04:45]} 32. g5 {[%clk 0:03:52]}  Re6 {[%clk 0:04:46]} 33. Bh4 {[%clk 0:02:54]}  Nd6 {[%clk 0:04:43]} 34. Nb3 {[%clk 0:02:42]}  Ne4 {[%clk 0:04:28]} 35. Nc5 {[%clk 0:02:38]}  Nxc5 {[%clk 0:04:28]} 36. bxc5 {[%clk 0:02:34]}  Nc8 {[%clk 0:04:17]} 37. Bf2 {[%clk 0:02:35]}  a5 {[%clk 0:04:13]} 38. Rb1 {[%clk 0:02:36]}  a4 {[%clk 0:04:11]} 39. Kg2 {[%clk 0:02:34]}  Qe7 {[%clk 0:04:05]} 40. Qf3 {[%clk 0:02:29]}  Qf7 {[%clk 0:03:54]} 41. Rcb2 {[%clk 0:02:27]}  Re4 {[%clk 0:03:53]} 42. Rh1 {[%clk 0:02:27]}  Ne7 {[%clk 0:03:50]} 43. Be1 {[%clk 0:02:27]}  Qe6 {[%clk 0:03:50]} 44. Bd2 {[%clk 0:02:26]}  Kh8 {[%clk 0:03:48]} 45. Kf2 {[%clk 0:02:23]}  Kg8 {[%clk 0:03:47]} 46. Rh3 {[%clk 0:02:18]}  Kh8 {[%clk 0:03:47]} 47. Ba5 {[%clk 0:02:20]}  Rc8 {[%clk 0:03:41]} 48. Rb1 {[%clk 0:02:17]}  Ng8 {[%clk 0:03:34]} 49. Rbh1 {[%clk 0:02:13]}  Qd7 {[%clk 0:03:31]} 50. Bb4 {[%clk 0:02:04]}  Rce8 {[%clk 0:03:31]} 51. Qd1 {[%clk 0:01:55]}  Qe7 {[%clk 0:03:31]} 52. Qd2 {[%clk 0:01:47]}  Qd7 {[%clk 0:03:31]} 53. Rg3 {[%clk 0:01:47]}  Qe7 {[%clk 0:03:29]} 1/2-1/2


[Site "Internet"]

[Event "Chessable Masters - Torneo preliminare"]
[White "Fier, Alexandr"]
[Black "Smirnov, Pavel"]
[WhiteFideId "2107139"]
[BlackFideId "4123425"]
[WhiteElo "2504"]
[BlackElo "2470"]
[Result "1/2-1/2"]
[Round "5"]
[TimeControl "600+2"]
[Date "2023.03.13"]
[WhiteClock "0:09:43"]
[BlackClock "0:09:36"]

1. e4 {[%clk 0:09:46]}  e5 {[%clk 0:10:00]} 2. Nf3 {[%clk 0:09:45]}  Nc6 {[%clk 0:10:01]} 3. Bc4 {[%clk 0:09:47]}  Nf6 {[%clk 0:10:02]} 4. d3 {[%clk 0:09:47]}  Bc5 {[%clk 0:10:02]} 5. Bg5 {[%clk 0:09:47]}  h6 {[%clk 0:10:02]} 6. Bh4 {[%clk 0:09:48]}  Be7 {[%clk 0:10:03]} 7. Bg3 {[%clk 0:09:44]}  d6 {[%clk 0:10:04]} 8. a4 {[%clk 0:09:46]}  O-O {[%clk 0:10:05]} 9. h3 {[%clk 0:09:47]}  Kh8 {[%clk 0:10:06]} 10. Nc3 {[%clk 0:09:45]}  Nh7 {[%clk 0:10:06]} 11. O-O {[%clk 0:09:44]}  f5 {[%clk 0:10:06]} 12. exf5 {[%clk 0:09:45]}  Bxf5 {[%clk 0:10:08]} 13. Nd5 {[%clk 0:09:46]}  Nf6 {[%clk 0:10:01]} 14. Re1 {[%clk 0:09:43]}  Nxd5 {[%clk 0:09:34]} 15. Bxd5 {[%clk 0:09:43]}  Qd7 {[%clk 0:09:36]} 1/2-1/2


[Site "Internet"]

[Event "Chessable Masters - Torneo preliminare"]
[White "Darini, Pouria"]
[Black "Pichot, Alan"]
[WhiteFideId "12502200"]
[BlackFideId "110973"]
[WhiteElo "2573"]
[BlackElo "2549"]
[Result "0-1"]
[Round "5"]
[TimeControl "600+2"]
[Date "2023.03.13"]
[WhiteClock "0:00:22"]
[BlackClock "0:00:48"]

1. e4 {[%clk 0:09:59]}  e5 {[%clk 0:09:59]} 2. Nf3 {[%clk 0:09:59]}  Nc6 {[%clk 0:10:00]} 3. Bb5 {[%clk 0:09:58]}  a6 {[%clk 0:10:01]} 4. Ba4 {[%clk 0:09:59]}  Nf6 {[%clk 0:10:01]} 5. d3 {[%clk 0:10:00]}  d6 {[%clk 0:09:52]} 6. c3 {[%clk 0:09:54]}  g6 {[%clk 0:09:51]} 7. O-O {[%clk 0:09:54]}  Bg7 {[%clk 0:09:52]} 8. Re1 {[%clk 0:09:55]}  O-O {[%clk 0:09:49]} 9. Nbd2 {[%clk 0:09:54]}  b5 {[%clk 0:09:37]} 10. Bc2 {[%clk 0:09:55]}  h6 {[%clk 0:09:05]} 11. a4 {[%clk 0:09:40]}  b4 {[%clk 0:09:00]} 12. a5 {[%clk 0:09:32]}  Rb8 {[%clk 0:08:55]} 13. Bb3 {[%clk 0:08:47]}  Nd7 {[%clk 0:08:14]} 14. Bc4 {[%clk 0:08:34]}  Nc5 {[%clk 0:07:56]} 15. Nb3 {[%clk 0:07:54]}  Nxb3 {[%clk 0:07:10]} 16. Bxb3 {[%clk 0:07:55]}  bxc3 {[%clk 0:06:46]} 17. bxc3 {[%clk 0:07:56]}  Be6 {[%clk 0:06:24]} 18. Bxe6 {[%clk 0:07:04]}  fxe6 {[%clk 0:06:26]} 19. Be3 {[%clk 0:06:38]}  Rb5 {[%clk 0:06:17]} 20. Nd2 {[%clk 0:05:13]}  Qd7 {[%clk 0:05:51]} 21. Qg4 {[%clk 0:04:16]}  Qf7 {[%clk 0:05:44]} 22. h4 {[%clk 0:03:47]}  d5 {[%clk 0:05:28]} 23. exd5 {[%clk 0:02:57]}  exd5 {[%clk 0:05:25]} 24. c4 {[%clk 0:02:59]}  dxc4 {[%clk 0:03:51]} 25. dxc4 {[%clk 0:03:00]}  Rb2 {[%clk 0:03:30]} 26. Ne4 {[%clk 0:00:53]}  Qf5 {[%clk 0:03:28]} 27. f3 {[%clk 0:00:54]}  Rc2 {[%clk 0:02:52]} 28. Rec1 {[%clk 0:00:21]}  Re2 {[%clk 0:02:43]} 29. Rc3 {[%clk 0:00:05]}  Qxg4 {[%clk 0:02:16]} 30. fxg4 {[%clk 0:00:06]}  Rf4 {[%clk 0:02:18]} 31. Bxf4 {[%clk 0:00:03]}  exf4 {[%clk 0:02:20]} 32. Rd1 {[%clk 0:00:03]}  Rxe4 {[%clk 0:02:18]} 33. Rcd3 {[%clk 0:00:04]}  Bd4+ {[%clk 0:02:15]} 34. Kh2 {[%clk 0:00:05]}  Kf7 {[%clk 0:02:13]} 35. Rb1 {[%clk 0:00:04]}  Be5 {[%clk 0:02:09]} 36. Rd5 {[%clk 0:00:04]}  f3+ {[%clk 0:02:04]} 37. Kh3 {[%clk 0:00:05]}  f2 {[%clk 0:01:58]} 38. Rf1 {[%clk 0:00:07]}  Re3+ {[%clk 0:01:56]} 39. g3 {[%clk 0:00:07]}  Rxg3+ {[%clk 0:01:56]} 40. Kh2 {[%clk 0:00:09]}  Rxg4+ {[%clk 0:01:54]} 41. Kh3 {[%clk 0:00:08]}  Rg3+ {[%clk 0:01:52]} 42. Kh2 {[%clk 0:00:10]}  Rc3+ {[%clk 0:01:14]} 43. Kg2 {[%clk 0:00:09]}  Bd4 {[%clk 0:01:14]} 44. h5 {[%clk 0:00:08]}  Rxc4 {[%clk 0:01:08]} 45. hxg6+ {[%clk 0:00:09]}  Kxg6 {[%clk 0:01:08]} 46. Rd7 {[%clk 0:00:10]}  Ne5 {[%clk 0:01:07]} 47. Re7 {[%clk 0:00:11]}  Ng4 {[%clk 0:01:04]} 48. Re6+ {[%clk 0:00:12]}  Kf5 {[%clk 0:01:03]} 49. Rxa6 {[%clk 0:00:14]}  Ne3+ {[%clk 0:01:02]} 50. Kxf2 {[%clk 0:00:15]}  Nxf1+ {[%clk 0:01:03]} 51. Kxf1 {[%clk 0:00:16]}  c6 {[%clk 0:00:56]} 52. Ra8 {[%clk 0:00:17]}  Ke4 {[%clk 0:00:52]} 53. a6 {[%clk 0:00:17]}  Ra4 {[%clk 0:00:52]} 54. Ke2 {[%clk 0:00:17]}  Ra2+ {[%clk 0:00:53]} 55. Kf1 {[%clk 0:00:19]}  h5 {[%clk 0:00:47]} 56. Re8+ {[%clk 0:00:20]}  Kd3 {[%clk 0:00:48]} 57. a7 {[%clk 0:00:17]}  Rxa7 {[%clk 0:00:45]} 58. Kg2 {[%clk 0:00:18]}  c5 {[%clk 0:00:45]} 59. Kh3 {[%clk 0:00:18]}  c4 {[%clk 0:00:46]} 60. Kh4 {[%clk 0:00:19]}  c3 {[%clk 0:00:47]} 61. Kxh5 {[%clk 0:00:21]}  c2 {[%clk 0:00:48]} 62. Kg6 {[%clk 0:00:22]} 0-1


[Site "Internet"]